[Event "Sverigemastarklassen 2025"]
[Site "Uppsala, Sweden"]
[Date "2025.07.02"]
[Round "5.5"]
[White "Falkevall, Axel"]
[Black "Seo, Jung Min"]
[Result "0-1"]
[TimeControl "90 min for 40 move + 30 min with an increment of 30 sec starting move 1"]
[WhiteTitle "FM"]
[BlackTitle "IM"]
[WhiteFideId "1735560"]
[BlackFideId "1734687"]
[WhiteElo "2372"]
[BlackElo "2472"]

1. d4 {[%clk 01:30:54]} {[%emt 00:00:05]} Nf6 {[%clk 01:30:54]} {[%emt
00:00:08]} 2. c4 {[%clk 01:31:19]} {[%emt 00:00:04]} e6 {[%clk 01:31:23]}
{[%emt 00:00:02]} 3. Nf3 {[%clk 01:31:44]} {[%emt 00:00:05]} d5 {[%clk
01:31:52]} {[%emt 00:00:01]} 4. Nc3 {[%clk 01:32:08]} {[%emt 00:00:05]} Bb4
{[%clk 01:32:19]} {[%emt 00:00:02]} 5. Qa4+ {[%clk 01:32:33]} {[%emt 00:00:06]}
Nc6 {[%clk 01:32:47]} {[%emt 00:00:03]} 6. e3 {[%clk 01:32:50]} {[%emt
00:00:12]} O-O {[%clk 01:33:05]} {[%emt 00:00:13]} 7. Qc2 {[%clk 01:33:09]}
{[%emt 00:00:09]} Ne7 {[%clk 01:32:43]} {[%emt 00:00:53]} 8. Bd2 {[%clk
01:30:32]} {[%emt 00:03:07]} c5 {[%clk 01:31:22]} {[%emt 00:01:51]} 9. a3
{[%clk 01:26:16]} {[%emt 00:04:46]} Bxc3 {[%clk 01:31:40]} {[%emt 00:00:13]} 10.
Bxc3 {[%clk 01:26:39]} {[%emt 00:00:06]} cxd4 {[%clk 01:32:04]} {[%emt
00:00:06]} 11. Bxd4 {[%clk 01:26:19]} {[%emt 00:00:49]} Bd7 {[%clk 01:25:10]}
{[%emt 00:07:24]} 12. c5 {[%clk 01:07:06]} {[%emt 00:19:44]} Ne4 {[%clk
01:22:01]} {[%emt 00:03:39]} 13. Bd3 {[%clk 01:05:13]} {[%emt 00:02:23]} f6
{[%clk 01:18:18]} {[%emt 00:04:13]} 14. Bxe4 {[%clk 01:01:41]} {[%emt
00:04:02]} dxe4 {[%clk 01:18:42]} {[%emt 00:00:06]} 15. Qxe4 {[%clk 00:59:51]}
{[%emt 00:02:20]} e5 {[%clk 01:00:15]} {[%emt 00:18:57]} 16. Bc3 {[%clk
00:59:45]} {[%emt 00:00:36]} Bc6 {[%clk 00:43:13]} {[%emt 00:17:33]} 17. Qc2
{[%clk 00:54:25]} {[%emt 00:05:49]} Bxf3 {[%clk 00:36:02]} {[%emt 00:07:42]} 18.
gxf3 {[%clk 00:53:45]} {[%emt 00:01:10]} Qd5 {[%clk 00:36:30]} {[%emt
00:00:01]} 19. Qe4 {[%clk 00:51:30]} {[%emt 00:02:44]} Qxc5 {[%clk 00:36:42]}
{[%emt 00:00:19]} 20. O-O-O {[%clk 00:46:42]} {[%emt 00:05:17]} Qc6 {[%clk
00:33:41]} {[%emt 00:03:32]} 21. Qxc6 {[%clk 00:43:26]} {[%emt 00:03:47]} Nxc6
{[%clk 00:34:06]} {[%emt 00:00:06]} 22. Rd7 {[%clk 00:39:35]} {[%emt 00:04:20]}
Rf7 {[%clk 00:34:19]} {[%emt 00:00:17]} 23. Rhd1 {[%clk 00:37:51]} {[%emt
00:02:13]} Re8 {[%clk 00:32:51]} {[%emt 00:01:59]} 24. R7d6 {[%clk 00:33:59]}
{[%emt 00:04:22]} Rc7 {[%clk 00:32:31]} {[%emt 00:00:49]} 25. Kc2 {[%clk
00:30:30]} {[%emt 00:04:00]} Kf7 {[%clk 00:32:52]} {[%emt 00:00:09]} 26. Kb3
{[%clk 00:26:53]} {[%emt 00:04:07]} Re6 {[%clk 00:32:35]} {[%emt 00:00:46]} 27.
Rd7+ {[%clk 00:24:57]} {[%emt 00:02:26]} Rxd7 {[%clk 00:32:43]} {[%emt
00:00:22]} 28. Rxd7+ {[%clk 00:25:24]} {[%emt 00:00:03]} Re7 {[%clk 00:33:10]}
{[%emt 00:00:03]} 29. Rd6 {[%clk 00:20:13]} {[%emt 00:05:40]} Re6 {[%clk
00:33:16]} {[%emt 00:00:24]} 30. Rd7+ {[%clk 00:20:13]} {[%emt 00:00:31]} Re7
{[%clk 00:33:41]} {[%emt 00:00:05]} 31. Rd6 {[%clk 00:20:28]} {[%emt 00:00:14]}
Rc7 {[%clk 00:27:47]} {[%emt 00:06:23]} 32. Kc2 {[%clk 00:16:25]} {[%emt
00:04:36]} Ke7 {[%clk 00:26:54]} {[%emt 00:01:22]} 33. Rd1 {[%clk 00:16:09]}
{[%emt 00:00:45]} Ke6 {[%clk 00:26:55]} {[%emt 00:00:29]} 34. Rg1 {[%clk
00:11:25]} {[%emt 00:05:14]} Rd7 {[%clk 00:26:46]} {[%emt 00:00:40]} 35. Rg4
{[%clk 00:08:46]} {[%emt 00:03:09]} g6 {[%clk 00:26:29]} {[%emt 00:00:48]} 36.
Ra4 {[%clk 00:04:01]} {[%emt 00:05:14]} f5 {[%clk 00:25:15]} {[%emt 00:01:43]}
37. Rh4 {[%clk 00:02:43]} {[%emt 00:01:49]} b5 {[%clk 00:23:13]} {[%emt
00:02:31]} 38. f4 {[%clk 00:02:11]} {[%emt 00:01:02]} e4 {[%clk 00:22:02]}
{[%emt 00:01:42]} 39. Rh3 {[%clk 00:01:40]} {[%emt 00:01:01]} a5 {[%clk
00:22:23]} {[%emt 00:00:09]} 40. b3 {[%clk 00:01:09]} {[%emt 00:01:01]} b4
{[%clk 00:13:23]} {[%emt 00:09:29]} 41. axb4 {[%clk 00:30:10]} {[%emt
00:01:30]} axb4 {[%clk 00:42:49]} {[%emt 00:01:04]} 42. Bd2 {[%clk 00:29:49]}
{[%emt 00:00:50]} Kd5 {[%clk 00:39:45]} {[%emt 00:03:35]} 43. Rg3 {[%clk
00:29:01]} {[%emt 00:01:18]} Kc5 {[%clk 00:39:27]} {[%emt 00:00:48]} 44. f3
{[%clk 00:23:38]} {[%emt 00:05:53]} Kd5 {[%clk 00:32:08]} {[%emt 00:07:48]} 45.
h4 {[%clk 00:19:15]} {[%emt 00:04:54]} Ra7 {[%clk 00:29:18]} {[%emt 00:03:21]}
46. Kb2 {[%clk 00:18:05]} {[%emt 00:01:40]} exf3 {[%clk 00:28:41]} {[%emt
00:01:07]} 47. Rxf3 {[%clk 00:18:29]} {[%emt 00:00:05]} Ke4 {[%clk 00:29:05]}
{[%emt 00:00:06]} 48. Rf2 {[%clk 00:18:48]} {[%emt 00:00:12]} Rb7 {[%clk
00:23:21]} {[%emt 00:06:14]} 49. Bc1 {[%clk 00:15:17]} {[%emt 00:04:00]} Rd7
{[%clk 00:14:31]} {[%emt 00:09:20]} 50. Rc2 {[%clk 00:06:51]} {[%emt 00:08:56]}
Rd6 {[%clk 00:14:49]} {[%emt 00:00:11]} 51. Bd2 {[%clk 00:04:33]} {[%emt
00:02:48]} Kf3 {[%clk 00:10:32]} {[%emt 00:04:47]} 52. Kc1 {[%clk 00:04:33]}
{[%emt 00:00:30]} Kg4 {[%clk 00:09:29]} {[%emt 00:01:34]} 53. Be1 {[%clk
00:04:16]} {[%emt 00:00:47]} Re6 {[%clk 00:09:17]} {[%emt 00:00:41]} 54. Kd1
{[%clk 00:04:08]} {[%emt 00:00:38]} Ne7 {[%clk 00:08:44]} {[%emt 00:01:03]} 55.
Rg2+ {[%clk 00:02:41]} {[%emt 00:01:59]} Kh3 {[%clk 00:04:23]} {[%emt
00:04:51]} 56. Rg3+ {[%clk 00:03:01]} {[%emt 00:00:09]} Kh2 {[%clk 00:04:51]}
{[%emt 00:00:02]} 57. Ke2 {[%clk 00:02:12]} {[%emt 00:01:19]} Nd5 {[%clk
00:05:20]} 58. Rf3 {[%clk 00:01:20]} {[%emt 00:01:23]} Ra6 {[%clk 00:04:08]}
{[%emt 00:01:42]} 59. Rf2 {[%clk 00:00:49]} {[%emt 00:01:01]} Kg3 {[%clk
00:02:07]} {[%emt 00:02:29]} 60. Rf1+ {[%clk 00:00:34]} {[%emt 00:00:46]} Kg4
{[%clk 00:02:05]} {[%emt 00:00:31]} 61. Rg1+ {[%clk 00:00:38]} {[%emt
00:00:28]} Kh5 {[%clk 00:02:29]} {[%emt 00:00:06]} 62. Rg5+ {[%clk 00:00:46]}
{[%emt 00:00:21]} Kh6 {[%clk 00:02:57]} {[%emt 00:00:03]} 63. Kd3 {[%clk
00:00:33]} {[%emt 00:00:43]} Rd6 {[%clk 00:02:29]} {[%emt 00:00:58]} 64. Kc4
{[%clk 00:00:32]} {[%emt 00:00:32]} Nxe3+ {[%clk 00:02:51]} {[%emt 00:00:07]}
65. Kxb4 {[%clk 00:00:54]} {[%emt 00:00:09]} Nc2+ {[%clk 00:01:56]} {[%emt
00:01:24]} 66. Kc5 {[%clk 00:01:22]} {[%emt 00:00:02]} Rd3 {[%clk 00:02:22]}
{[%emt 00:00:04]} 67. Ba5 {[%clk 00:00:47]} {[%emt 00:01:05]} Rxb3 {[%clk
00:02:48]} {[%emt 00:00:04]} 68. Bc7 {[%clk 00:01:00]} {[%emt 00:00:16]} Rc3+
{[%clk 00:02:08]} {[%emt 00:01:11]} 69. Kd6 {[%clk 00:00:46]} {[%emt 00:00:45]}
Nd4 {[%clk 00:02:11]} {[%emt 00:00:26]} 70. Bd8 {[%clk 00:00:57]} {[%emt
00:00:19]} Rd3 {[%clk 00:01:23]} {[%emt 00:01:19]} 71. Rg2 {[%clk 00:01:10]}
{[%emt 00:00:16]} Nc6+ {[%clk 04:04:44]} {[%emt 00:00:31]} 72. Kxc6 {[%clk
00:01:12]} {[%emt 00:00:28]} Rxd8 {[%clk 00:01:50]} {[%emt 00:00:02]} 73. Kc5
{[%clk 00:01:11]} {[%emt 00:00:31]} Kh5 {[%clk 00:02:15]} {[%emt 00:00:05]} 74.
Rh2 {[%clk 00:01:01]} {[%emt 00:00:40]} Rd1 {[%clk 00:02:30]} {[%emt 00:00:13]}
0-1

[Event "Sverigemastarklassen 2025"]
[Site "Uppsala, Sweden"]
[Date "2025.07.01"]
[Round "4.1"]
[White "Galperin, Platon"]
[Black "Lokander, Martin"]
[Result "1-0"]
[TimeControl "90 min for 40 move + 30 min with an increment of 30 sec starting move 1"]
[WhiteTitle "GM"]
[BlackTitle "IM"]
[WhiteFideId "14165414"]
[BlackFideId "1709569"]
[WhiteElo "2500"]
[BlackElo "2446"]

1. c4 {[%clk 01:29:37]} {[%emt 00:01:22]} c5 {[%clk 01:30:23]} {[%emt
00:00:37]} 2. Nf3 {[%clk 01:29:10]} {[%emt 00:00:58]} Nf6 {[%clk 01:29:19]}
{[%emt 00:01:33]} 3. Nc3 {[%clk 01:27:16]} {[%emt 00:02:24]} Nc6 {[%clk
01:25:12]} {[%emt 00:04:38]} 4. d4 {[%clk 01:26:42]} {[%emt 00:01:04]} cxd4
{[%clk 01:25:34]} {[%emt 00:00:08]} 5. Nxd4 {[%clk 01:27:07]} {[%emt 00:00:04]}
g6 {[%clk 01:18:59]} {[%emt 00:07:05]} 6. e4 {[%clk 01:27:10]} {[%emt
00:00:27]} d6 {[%clk 01:19:13]} {[%emt 00:00:17]} 7. Be2 {[%clk 01:27:31]}
{[%emt 00:00:08]} Nxd4 {[%clk 01:19:23]} {[%emt 00:00:20]} 8. Qxd4 {[%clk
01:27:55]} {[%emt 00:00:06]} Bg7 {[%clk 01:19:49]} {[%emt 00:00:04]} 9. Be3
{[%clk 01:28:18]} {[%emt 00:00:07]} O-O {[%clk 01:20:08]} {[%emt 00:00:12]} 10.
Qd3 {[%clk 01:28:43]} {[%emt 00:00:04]} Ng4 {[%clk 01:16:43]} {[%emt 00:03:56]}
11. Bxg4 {[%clk 01:28:42]} {[%emt 00:00:29]} Bxg4 {[%clk 01:17:09]} {[%emt
00:00:05]} 12. O-O {[%clk 01:28:29]} {[%emt 00:00:42]} Be6 {[%clk 01:10:10]}
{[%emt 00:07:30]} 13. Bd4 {[%clk 01:27:42]} {[%emt 00:01:17]} Bxd4 {[%clk
01:09:19]} {[%emt 00:01:22]} 14. Qxd4 {[%clk 01:28:07]} {[%emt 00:00:05]} a6
{[%clk 01:02:45]} {[%emt 00:07:04]} 15. f4 {[%clk 01:19:26]} {[%emt 00:09:10]}
b5 {[%clk 00:51:40]} {[%emt 00:11:35]} 16. cxb5 {[%clk 01:12:34]} {[%emt
00:07:21]} axb5 {[%clk 00:52:03]} {[%emt 00:00:09]} 17. f5 {[%clk 01:12:38]}
{[%emt 00:00:26]} Bd7 {[%clk 00:49:13]} {[%emt 00:03:20]} 18. f6 {[%clk
00:55:49]} {[%emt 00:17:18]} Bc6 {[%clk 00:49:10]} {[%emt 00:00:34]} 19. b4
{[%clk 00:55:08]} {[%emt 00:01:11]} Re8 {[%clk 00:45:19]} {[%emt 00:04:21]} 20.
fxe7 {[%clk 00:52:22]} {[%emt 00:03:16]} Qxe7 {[%clk 00:44:18]} {[%emt
00:01:30]} 21. Rf6 {[%clk 00:51:42]} {[%emt 00:01:08]} Bxe4 {[%clk 00:29:31]}
{[%emt 00:15:19]} 22. Nxb5 {[%clk 00:49:06]} {[%emt 00:03:07]} Bd5 {[%clk
00:17:50]} {[%emt 00:12:11]} 23. Nc3 {[%clk 00:44:54]} {[%emt 00:04:41]} Be6
{[%clk 00:17:51]} {[%emt 00:00:30]} 24. Rf3 {[%clk 00:36:35]} {[%emt 00:08:47]}
Rec8 {[%clk 00:16:22]} {[%emt 00:02:01]} 25. b5 {[%clk 00:34:36]} {[%emt
00:02:29]} Rc4 {[%clk 00:16:04]} {[%emt 00:00:48]} 26. Qe3 {[%clk 00:34:39]}
{[%emt 00:00:27]} Qb7 {[%clk 00:14:11]} {[%emt 00:02:23]} 27. a4 {[%clk
00:33:46]} {[%emt 00:01:23]} d5 {[%clk 00:14:11]} {[%emt 00:00:30]} 28. Rf4
{[%clk 00:33:25]} {[%emt 00:00:51]} Qc7 {[%clk 00:12:10]} {[%emt 00:02:31]} 29.
Ne2 {[%clk 00:28:40]} {[%emt 00:05:14]} Bd7 {[%clk 00:08:32]} {[%emt 00:04:08]}
30. b6 {[%clk 00:28:13]} {[%emt 00:00:56]} Qc6 {[%clk 00:05:00]} {[%emt
00:04:03]} 31. Rb1 {[%clk 00:17:53]} {[%emt 00:10:50]} Bc8 {[%clk 00:03:20]}
{[%emt 00:02:10]} 32. Nd4 {[%clk 00:13:44]} {[%emt 00:04:39]} Qxa4 {[%clk
00:02:11]} {[%emt 00:01:41]} 33. b7 {[%clk 00:07:49]} {[%emt 00:06:24]} Bxb7
{[%clk 00:02:38]} {[%emt 00:00:03]} 34. Qe7 {[%clk 00:05:40]} {[%emt 00:02:40]}
Qe8 {[%clk 00:01:15]} {[%emt 00:01:53]} 35. Qxb7 {[%clk 00:03:54]} {[%emt
00:02:15]} Qe3+ {[%clk 00:00:50]} {[%emt 00:00:56]} 36. Rf2 {[%clk 00:03:27]}
{[%emt 00:00:56]} Rf8 {[%clk 00:00:32]} {[%emt 00:00:48]} 37. Nf3 {[%clk
00:03:16]} {[%emt 00:00:41]} Rc2 {[%clk 00:00:34]} {[%emt 00:00:29]} 38. Rbf1
{[%clk 00:03:35]} {[%emt 00:00:10]} Re8 {[%clk 00:00:33]} {[%emt 00:00:32]} 39.
Qxd5 {[%clk 00:01:09]} {[%emt 00:02:56]} Re4 {[%clk 00:00:33]} {[%emt
00:00:30]} 40. g3 {[%clk 00:01:00]} {[%emt 00:00:39]} Rc5 {[%clk 00:00:32]}
{[%emt 00:00:31]} 41. Qa8+ {[%clk 00:00:31]} {[%emt 00:00:58]} Re8 {[%clk
00:00:32]} {[%emt 00:00:30]} 42. Qa2 {[%clk 00:29:50]} {[%emt 00:01:10]} Re6
{[%clk 00:22:19]} {[%emt 00:08:44]} 43. Kg2 {[%clk 00:28:54]} {[%emt 00:01:26]}
Qc3 {[%clk 00:16:52]} {[%emt 00:05:57]} 44. Rd1 {[%clk 00:26:05]} {[%emt
00:03:19]} Ra5 {[%clk 00:13:35]} {[%emt 00:03:48]} 45. Rd8+ {[%clk 00:25:52]}
{[%emt 00:00:43]} Kg7 {[%clk 00:14:02]} {[%emt 00:00:02]} 46. Qb1 {[%clk
00:26:15]} {[%emt 00:00:07]} Rf5 {[%clk 00:13:29]} {[%emt 00:01:03]} 47. Rd3
{[%clk 00:23:11]} {[%emt 00:03:33]} Qc6 {[%clk 00:10:59]} {[%emt 00:03:01]} 48.
g4 {[%clk 00:21:41]} {[%emt 00:02:00]} Rb5 {[%clk 00:09:49]} {[%emt 00:01:40]}
49. Qa1+ {[%clk 00:22:04]} {[%emt 00:00:07]} f6 {[%clk 00:09:44]} {[%emt
00:00:35]} 50. Rfd2 {[%clk 00:20:59]} {[%emt 00:01:35]} Rb7 {[%clk 00:05:15]}
{[%emt 00:04:59]} 51. Qa8 {[%clk 00:18:01]} {[%emt 00:03:26]} Rbe7 {[%clk
00:03:53]} {[%emt 00:01:55]} 52. Qd8 {[%clk 00:17:30]} {[%emt 00:00:59]} h5
{[%clk 00:02:41]} {[%emt 00:01:43]} 53. Rd7 {[%clk 00:14:43]} {[%emt 00:03:17]}
Qc5 {[%clk 00:02:56]} {[%emt 00:00:15]} 54. gxh5 {[%clk 00:13:02]} {[%emt
00:02:11]} gxh5 {[%clk 00:03:10]} {[%emt 00:00:16]} 55. Kh1 {[%clk 00:07:19]}
{[%emt 00:06:12]} Rxd7 {[%clk 00:00:50]} {[%emt 00:02:52]} 56. Rxd7+ {[%clk
00:07:40]} {[%emt 00:00:09]} Kg6 {[%clk 00:01:13]} {[%emt 00:00:07]} 57. Qg8+
{[%clk 00:08:03]} {[%emt 00:00:06]} 1-0

[Event "Sverigemastarklassen 2025"]
[Site "Uppsala, Sweden"]
[Date "2025.07.01"]
[Round "4.2"]
[White "Hector, Jonny"]
[Black "Sorensen, Hampus"]
[Result "0-1"]
[TimeControl "90 min for 40 move + 30 min with an increment of 30 sec starting move 1"]
[WhiteTitle "GM"]
[BlackTitle "IM"]
[WhiteFideId "1700090"]
[BlackFideId "8703884"]
[WhiteElo "2430"]
[BlackElo "2432"]

1. e4 {[%clk 01:30:52]} {[%emt 00:00:06]} e5 {[%clk 01:30:30]} {[%emt
00:00:31]} 2. Nc3 {[%clk 01:31:04]} {[%emt 00:00:17]} Nc6 {[%clk 01:30:42]}
{[%emt 00:00:20]} 3. Nf3 {[%clk 01:29:54]} {[%emt 00:01:38]} Nf6 {[%clk
01:30:43]} {[%emt 00:00:30]} 4. h3 {[%clk 01:30:01]} {[%emt 00:00:22]} Bb4
{[%clk 01:30:47]} {[%emt 00:00:27]} 5. a3 {[%clk 01:28:48]} {[%emt 00:01:43]}
Bxc3 {[%clk 01:30:12]} {[%emt 00:01:06]} 6. dxc3 {[%clk 01:29:09]} {[%emt
00:00:09]} d6 {[%clk 01:19:40]} {[%emt 00:11:02]} 7. Bd3 {[%clk 01:28:59]}
{[%emt 00:00:39]} O-O {[%clk 01:17:57]} {[%emt 00:02:13]} 8. Qe2 {[%clk
01:23:55]} {[%emt 00:05:34]} Nd7 {[%clk 01:01:29]} {[%emt 00:16:59]} 9. b4
{[%clk 01:18:28]} {[%emt 00:05:56]} a5 {[%clk 00:56:48]} {[%emt 00:05:12]} 10.
Rb1 {[%clk 01:13:04]} {[%emt 00:05:53]} Ne7 {[%clk 00:50:47]} {[%emt 00:06:31]}
11. O-O {[%clk 01:05:54]} {[%emt 00:07:39]} Ng6 {[%clk 00:49:02]} {[%emt
00:02:17]} 12. Bg5 {[%clk 01:02:47]} {[%emt 00:03:36]} Qe8 {[%clk 00:47:55]}
{[%emt 00:01:37]} 13. Nh4 {[%clk 00:55:33]} {[%emt 00:07:44]} h6 {[%clk
00:42:07]} {[%emt 00:06:19]} 14. Bc4 {[%clk 00:47:50]} {[%emt 00:08:12]} Nxh4
{[%clk 00:40:48]} {[%emt 00:01:49]} 15. Bxh4 {[%clk 00:48:12]} {[%emt
00:00:08]} Nb6 {[%clk 00:38:31]} {[%emt 00:02:48]} 16. Bd3 {[%clk 00:47:49]}
{[%emt 00:00:52]} Be6 {[%clk 00:37:43]} {[%emt 00:01:18]} 17. f4 {[%clk
00:43:06]} {[%emt 00:05:13]} exf4 {[%clk 00:36:56]} {[%emt 00:01:18]} 18. Be1
{[%clk 00:41:54]} {[%emt 00:01:41]} axb4 {[%clk 00:35:27]} {[%emt 00:01:58]} 19.
axb4 {[%clk 00:42:08]} {[%emt 00:00:18]} Nd7 {[%clk 00:34:30]} {[%emt
00:01:28]} 20. Rxf4 {[%clk 00:40:37]} {[%emt 00:02:00]} Ne5 {[%clk 00:34:01]}
{[%emt 00:00:59]} 21. Bd2 {[%clk 00:38:50]} {[%emt 00:02:15]} f6 {[%clk
00:32:00]} {[%emt 00:02:32]} 22. Rff1 {[%clk 00:27:31]} {[%emt 00:11:49]} Qf7
{[%clk 00:29:41]} {[%emt 00:02:49]} 23. Ra1 {[%clk 00:27:03]} {[%emt 00:00:58]}
b6 {[%clk 00:27:10]} {[%emt 00:03:02]} 24. Bf4 {[%clk 00:25:47]} {[%emt
00:01:45]} Rfe8 {[%clk 00:20:31]} {[%emt 00:07:09]} 25. Bxe5 {[%clk 00:17:11]}
{[%emt 00:09:06]} dxe5 {[%clk 00:20:46]} {[%emt 00:00:15]} 26. Bb5 {[%clk
00:17:28]} {[%emt 00:00:13]} Rxa1 {[%clk 00:19:43]} {[%emt 00:01:33]} 27. Rxa1
{[%clk 00:17:51]} {[%emt 00:00:06]} Rd8 {[%clk 00:20:07]} {[%emt 00:00:07]} 28.
Kh2 {[%clk 00:13:32]} {[%emt 00:04:49]} Kh7 {[%clk 00:15:04]} {[%emt 00:05:34]}
29. Ra7 {[%clk 00:13:07]} {[%emt 00:00:54]} Rd6 {[%clk 00:13:30]} {[%emt
00:02:04]} 30. Bd3 {[%clk 00:09:08]} {[%emt 00:04:29]} Rd8 {[%clk 00:09:59]}
{[%emt 00:04:01]} 31. Qf1 {[%clk 00:07:21]} {[%emt 00:02:16]} Qd7 {[%clk
00:08:56]} {[%emt 00:01:34]} 32. Qa1 {[%clk 00:04:06]} {[%emt 00:03:45]} Qc6
{[%clk 00:07:30]} {[%emt 00:01:56]} 33. Qa3 {[%clk 00:03:31]} {[%emt 00:01:05]}
Qd6 {[%clk 00:01:17]} {[%emt 00:06:44]} 34. Kh1 {[%clk 00:02:20]} {[%emt
00:01:39]} Rb8 {[%clk 00:01:15]} {[%emt 00:00:33]} 35. Ra8 {[%clk 00:01:39]}
{[%emt 00:01:11]} Rxa8 {[%clk 00:01:14]} {[%emt 00:00:32]} 36. Qxa8 {[%clk
00:02:06]} {[%emt 00:00:02]} c5 {[%clk 00:01:23]} {[%emt 00:00:21]} 37. Qe8
{[%clk 00:01:11]} {[%emt 00:01:24]} Bg8 {[%clk 00:01:01]} {[%emt 00:00:54]} 38.
bxc5 {[%clk 00:00:48]} {[%emt 00:00:53]} Qxc5 {[%clk 00:01:09]} {[%emt
00:00:22]} 39. Qb8 {[%clk 00:00:45]} {[%emt 00:00:32]} Qe3 {[%clk 00:01:10]}
{[%emt 00:00:28]} 40. Qc7 {[%clk 00:00:59]} {[%emt 00:00:18]} Be6 {[%clk
00:00:42]} {[%emt 00:00:57]} 41. Qc6 {[%clk 00:27:42]} {[%emt 00:03:47]} Bf7
{[%clk 00:28:49]} {[%emt 00:02:23]} 42. Kh2 {[%clk 00:21:36]} {[%emt 00:06:35]}
Bg6 {[%clk 00:27:48]} {[%emt 00:01:32]} 43. Qa8 {[%clk 00:21:26]} {[%emt
00:00:40]} h5 {[%clk 00:27:16]} {[%emt 00:01:02]} 44. Qc6 {[%clk 00:18:01]}
{[%emt 00:03:55]} h4 {[%clk 00:25:05]} {[%emt 00:02:41]} 45. c4 {[%clk
00:16:17]} {[%emt 00:02:14]} Qf2 {[%clk 00:24:34]} {[%emt 00:01:01]} 46. Kh1
{[%clk 00:14:29]} {[%emt 00:02:18]} Bh5 {[%clk 00:20:56]} {[%emt 00:04:07]} 47.
Qc8 {[%clk 00:13:07]} {[%emt 00:01:50]} Kg6 {[%clk 00:19:11]} {[%emt 00:02:17]}
48. Qd7 {[%clk 00:12:11]} {[%emt 00:01:26]} Kh6 {[%clk 00:18:51]} {[%emt
00:00:51]} 49. Qe7 {[%clk 00:07:49]} {[%emt 00:04:52]} g6 {[%clk 00:08:22]}
{[%emt 00:11:00]} 50. Qd7 {[%clk 00:06:55]} {[%emt 00:01:23]} Kg5 {[%clk
00:08:28]} {[%emt 00:00:24]} 51. Qe6 {[%clk 00:06:59]} {[%emt 00:00:26]} Bd1
{[%clk 00:06:43]} {[%emt 00:02:15]} 52. Qd7 {[%clk 00:05:59]} {[%emt 00:01:30]}
Bh5 {[%clk 00:04:54]} {[%emt 00:02:19]} 53. Qe6 {[%clk 00:06:13]} {[%emt
00:00:15]} Qe1+ {[%clk 00:04:15]} {[%emt 00:01:09]} 54. Kh2 {[%clk 00:06:41]}
{[%emt 00:00:03]} Qg3+ {[%clk 00:04:41]} {[%emt 00:00:04]} 55. Kh1 {[%clk
00:07:01]} {[%emt 00:00:09]} Qf2 {[%clk 00:05:01]} {[%emt 00:00:11]} 56. Qd6
{[%clk 00:01:15]} {[%emt 00:06:16]} Bf3 {[%clk 00:04:48]} {[%emt 00:00:43]} 57.
gxf3 {[%clk 00:01:40]} {[%emt 00:00:04]} Qxf3+ {[%clk 00:05:15]} {[%emt
00:00:04]} 58. Kg1 {[%clk 00:01:57]} {[%emt 00:00:13]} Qg3+ {[%clk 00:05:41]}
{[%emt 00:00:05]} 59. Kf1 {[%clk 00:02:16]} {[%emt 00:00:10]} Qxh3+ {[%clk
00:06:06]} {[%emt 00:00:05]} 60. Kg1 {[%clk 00:00:59]} {[%emt 00:01:47]} Qg3+
{[%clk 00:06:06]} {[%emt 00:00:30]} 61. Kh1 {[%clk 00:01:19]} {[%emt 00:00:10]}
Qf3+ {[%clk 00:05:14]} {[%emt 00:01:23]} 62. Kg1 {[%clk 00:01:32]} {[%emt
00:00:16]} Qe3+ {[%clk 00:05:21]} {[%emt 00:00:23]} 63. Kh1 {[%clk 00:00:49]}
{[%emt 00:01:13]} Qe1+ {[%clk 00:04:35]} {[%emt 00:01:16]} 64. Kg2 {[%clk
00:01:08]} {[%emt 00:00:11]} Qd2+ {[%clk 00:04:43]} {[%emt 00:00:22]} 65. Kf3
{[%clk 00:00:49]} {[%emt 00:00:49]} h3 {[%clk 00:04:42]} {[%emt 00:00:31]} 0-1